[Event "Titled Tuesday Blitz March 21 Early 2023"]
[White "Naroditsky, Daniel"]
[Black "benny_aizenberg"]
[WhiteFideId "2026961"]
[WhiteElo "2633"]
[BlackElo "2577"]
[Result "1-0"]
[Round "01"]
[TimeControl "180+2"]
[Date "2023.03.21"]
[WhiteClock "0:00:09"]
[BlackClock "0:00:07"]

1. d4 {[%clk 0:02:43]}  Nf6 {[%clk 0:02:56]} 2. Nc3 {[%clk 0:02:40]}  d5 {[%clk 0:02:56]} 3. Bf4 {[%clk 0:02:29]}  a6 {[%clk 0:02:53]} 4. e3 {[%clk 0:02:29]}  e6 {[%clk 0:02:53]} 5. a3 {[%clk 0:02:26]}  c5 {[%clk 0:02:51]} 6. Nf3 {[%clk 0:02:23]}  Nc6 {[%clk 0:02:48]} 7. dxc5 {[%clk 0:02:10]}  Bxc5 {[%clk 0:02:48]} 8. Bd3 {[%clk 0:02:11]}  O-O {[%clk 0:02:39]} 9. O-O {[%clk 0:02:07]}  Qe7 {[%clk 0:02:24]} 10. e4 {[%clk 0:02:06]}  dxe4 {[%clk 0:02:10]} 11. Nxe4 {[%clk 0:02:06]}  Nxe4 {[%clk 0:02:10]} 12. Bxe4 {[%clk 0:02:07]}  h6 {[%clk 0:02:11]} 13. Qe2 {[%clk 0:02:07]}  Bd7 {[%clk 0:02:04]} 14. Rad1 {[%clk 0:02:05]}  Rfd8 {[%clk 0:02:02]} 15. b4 {[%clk 0:02:03]}  Bb6 {[%clk 0:02:00]} 16. Bd6 {[%clk 0:01:57]}  Qf6 {[%clk 0:02:00]} 17. c4 {[%clk 0:01:57]}  Nd4 {[%clk 0:01:58]} 18. Nxd4 {[%clk 0:01:55]}  Bxd4 {[%clk 0:01:58]} 19. Bxb7 {[%clk 0:01:56]}  Ba4 {[%clk 0:01:54]} 20. Bxa8 {[%clk 0:01:51]}  Bxd1 {[%clk 0:01:52]} 21. Rxd1 {[%clk 0:01:52]}  Rxd6 {[%clk 0:01:52]} 22. Bf3 {[%clk 0:01:43]}  e5 {[%clk 0:01:50]} 23. c5 {[%clk 0:01:42]}  Rd8 {[%clk 0:01:44]} 24. c6 {[%clk 0:01:31]}  e4 {[%clk 0:01:29]} 25. c7 {[%clk 0:01:30]}  Rc8 {[%clk 0:01:09]} 26. Qxe4 {[%clk 0:01:30]}  Bb6 {[%clk 0:01:09]} 27. h4 {[%clk 0:00:51]}  Rxc7 {[%clk 0:01:05]} 28. h5 {[%clk 0:00:47]}  Re7 {[%clk 0:01:02]} 29. Qc4 {[%clk 0:00:42]}  Kh7 {[%clk 0:00:59]} 30. Qd3+ {[%clk 0:00:39]}  g6 {[%clk 0:00:57]} 31. hxg6+ {[%clk 0:00:39]}  fxg6 {[%clk 0:00:57]} 32. g3 {[%clk 0:00:33]}  Qb2 {[%clk 0:00:50]} 33. Rd2 {[%clk 0:00:30]}  Qe5 {[%clk 0:00:45]} 34. Kg2 {[%clk 0:00:30]}  Kg7 {[%clk 0:00:43]} 35. Qd6 {[%clk 0:00:30]}  Qf6 {[%clk 0:00:34]} 36. Qxf6+ {[%clk 0:00:15]}  Kxf6 {[%clk 0:00:35]} 37. a4 {[%clk 0:00:15]}  a5 {[%clk 0:00:26]} 38. bxa5 {[%clk 0:00:15]}  Bxa5 {[%clk 0:00:26]} 39. Rd5 {[%clk 0:00:16]}  Ra7 {[%clk 0:00:23]} 40. Rd6+ {[%clk 0:00:15]}  Kg7 {[%clk 0:00:18]} 41. Be4 {[%clk 0:00:16]}  g5 {[%clk 0:00:18]} 42. Rg6+ {[%clk 0:00:16]}  Kf7 {[%clk 0:00:18]} 43. Rxh6 {[%clk 0:00:16]}  Bc3 {[%clk 0:00:19]} 44. Rc6 {[%clk 0:00:13]}  Bd4 {[%clk 0:00:19]} 45. Rc4 {[%clk 0:00:13]}  Bb6 {[%clk 0:00:19]} 46. Bc6 {[%clk 0:00:13]}  Kf6 {[%clk 0:00:19]} 47. Bb5 {[%clk 0:00:13]}  Re7 {[%clk 0:00:18]} 48. Rc6+ {[%clk 0:00:13]}  Re6 {[%clk 0:00:18]} 49. Rxe6+ {[%clk 0:00:07]}  Kxe6 {[%clk 0:00:19]} 50. f3 {[%clk 0:00:06]}  Kf5 {[%clk 0:00:19]} 51. Kh3 {[%clk 0:00:07]}  g4+ {[%clk 0:00:18]} 52. fxg4+ {[%clk 0:00:06]}  Kg5 {[%clk 0:00:18]} 53. Be2 {[%clk 0:00:07]}  Ba5 {[%clk 0:00:18]} 54. Kg2 {[%clk 0:00:07]}  Kf6 {[%clk 0:00:15]} 55. Kf3 {[%clk 0:00:08]}  Ke5 {[%clk 0:00:16]} 56. Bd3 {[%clk 0:00:07]}  Bb6 {[%clk 0:00:16]} 57. g5 {[%clk 0:00:08]}  Ke6 {[%clk 0:00:09]} 58. g6 {[%clk 0:00:08]}  Kf6 {[%clk 0:00:09]} 59. Bf5 {[%clk 0:00:06]}  Bd4 {[%clk 0:00:08]} 60. Ke4 {[%clk 0:00:05]}  Bf2 {[%clk 0:00:07]} 61. g4 {[%clk 0:00:05]}  Be1 {[%clk 0:00:07]} 62. Kd5 {[%clk 0:00:06]}  Kg7 {[%clk 0:00:07]} 63. Kc6 {[%clk 0:00:07]}  Ba5 {[%clk 0:00:07]} 64. Kb5 {[%clk 0:00:08]}  Be1 {[%clk 0:00:07]} 65. a5 {[%clk 0:00:09]} 1-0


[Site "https://www.chess.com"]

[Event "Titled Tuesday Blitz March 21 Early 2023"]
[White "Aaditya Dhingra"]
[Black "Erigaisi Arjun"]
[WhiteFideId "25678191"]
[BlackFideId "35009192"]
[WhiteElo "2083"]
[BlackElo "2737"]
[Result "1-0"]
[Round "01"]
[TimeControl "180+2"]
[Date "2023.03.21"]
[WhiteClock "0:00:54"]
[BlackClock "0:01:21"]

1. e4 {[%clk 0:02:57]}  c6 {[%clk 0:02:58]} 2. Nc3 {[%clk 0:02:56]}  d6 {[%clk 0:02:58]} 3. Nf3 {[%clk 0:02:57]}  g6 {[%clk 0:02:58]} 4. d4 {[%clk 0:02:56]}  Bg7 {[%clk 0:02:59]} 5. Be3 {[%clk 0:02:57]}  Nd7 {[%clk 0:02:56]} 6. Qd2 {[%clk 0:02:55]}  b5 {[%clk 0:02:56]} 7. O-O-O {[%clk 0:02:48]}  Nb6 {[%clk 0:02:53]} 8. Bd3 {[%clk 0:02:47]}  a5 {[%clk 0:02:39]} 9. Kb1 {[%clk 0:02:46]}  a4 {[%clk 0:02:38]} 10. a3 {[%clk 0:02:37]}  Bg4 {[%clk 0:02:37]} 11. d5 {[%clk 0:02:31]}  b4 {[%clk 0:02:19]} 12. axb4 {[%clk 0:02:13]}  a3 {[%clk 0:02:20]} 13. Bd4 {[%clk 0:02:04]}  Bxd4 {[%clk 0:02:17]} 14. Nxd4 {[%clk 0:02:03]}  Bxd1 {[%clk 0:02:15]} 15. Nxc6 {[%clk 0:01:58]}  Qc7 {[%clk 0:02:12]} 16. Rxd1 {[%clk 0:01:52]}  axb2 {[%clk 0:02:11]} 17. Kxb2 {[%clk 0:01:50]}  Nf6 {[%clk 0:02:10]} 18. Qh6 {[%clk 0:01:39]}  Qb7 {[%clk 0:01:38]} 19. Bb5 {[%clk 0:01:33]}  Na4+ {[%clk 0:01:38]} 20. Bxa4 {[%clk 0:01:29]}  Rxa4 {[%clk 0:01:37]} 21. Nxa4 {[%clk 0:01:27]}  Kd7 {[%clk 0:01:34]} 22. Qh3+ {[%clk 0:01:20]}  e6 {[%clk 0:01:29]} 23. dxe6+ {[%clk 0:01:04]}  Kxc6 {[%clk 0:01:28]} 24. Qc3+ {[%clk 0:01:02]}  Kb5 {[%clk 0:01:28]} 25. Qxf6 {[%clk 0:01:00]}  Kxa4 {[%clk 0:01:24]} 26. Qxh8 {[%clk 0:00:57]}  Qxb4+ {[%clk 0:01:22]} 27. Kc1 {[%clk 0:00:57]}  fxe6 {[%clk 0:01:21]} 28. Rd4 {[%clk 0:00:54]} 1-0


[Site "https://www.chess.com"]

[Event "Titled Tuesday Blitz March 21 Early 2023"]
[White "Ismagilov, Damir"]
[Black "Firouzja, Alireza"]
[WhiteFideId "34199982"]
[BlackFideId "12573981"]
[WhiteElo "2078"]
[BlackElo "2904"]
[Result "0-1"]
[Round "01"]
[TimeControl "180+2"]
[Date "2023.03.21"]
[WhiteClock "0:00:01"]
[BlackClock "0:00:25"]

1. e4 {[%clk 0:02:53]}  c5 {[%clk 0:02:59]} 2. Nf3 {[%clk 0:02:52]}  d6 {[%clk 0:02:58]} 3. d4 {[%clk 0:02:51]}  cxd4 {[%clk 0:02:57]} 4. Nxd4 {[%clk 0:02:52]}  Nf6 {[%clk 0:02:57]} 5. f3 {[%clk 0:02:53]}  e5 {[%clk 0:02:54]} 6. Nb3 {[%clk 0:02:51]}  Be7 {[%clk 0:02:39]} 7. c4 {[%clk 0:02:45]}  a5 {[%clk 0:02:36]} 8. Be3 {[%clk 0:02:41]}  a4 {[%clk 0:02:34]} 9. N3d2 {[%clk 0:02:41]}  O-O {[%clk 0:02:32]} 10. Nc3 {[%clk 0:02:40]}  Qa5 {[%clk 0:02:32]} 11. Be2 {[%clk 0:02:38]}  Bd8 {[%clk 0:02:27]} 12. Nd5 {[%clk 0:02:17]}  Nxd5 {[%clk 0:02:25]} 13. cxd5 {[%clk 0:02:17]}  Bb6 {[%clk 0:02:19]} 14. Bxb6 {[%clk 0:02:13]}  Qxb6 {[%clk 0:02:20]} 15. Nc4 {[%clk 0:02:13]}  Qd8 {[%clk 0:02:05]} 16. O-O {[%clk 0:02:05]}  Nd7 {[%clk 0:02:00]} 17. b4 {[%clk 0:01:50]}  Nf6 {[%clk 0:01:45]} 18. a3 {[%clk 0:01:46]}  Bd7 {[%clk 0:01:39]} 19. Qd2 {[%clk 0:01:39]}  Bb5 {[%clk 0:01:34]} 20. Na5 {[%clk 0:01:23]}  Qb6+ {[%clk 0:01:32]} 21. Kh1 {[%clk 0:01:22]}  Rfc8 {[%clk 0:01:31]} 22. Rfc1 {[%clk 0:01:20]}  Qa6 {[%clk 0:01:25]} 23. Bxb5 {[%clk 0:01:12]}  Qxb5 {[%clk 0:01:26]} 24. Rxc8+ {[%clk 0:01:11]}  Rxc8 {[%clk 0:01:26]} 25. Rc1 {[%clk 0:01:12]}  Rxc1+ {[%clk 0:01:21]} 26. Qxc1 {[%clk 0:01:12]}  g6 {[%clk 0:01:17]} 27. Qc4 {[%clk 0:01:09]}  Qb6 {[%clk 0:01:14]} 28. Qc2 {[%clk 0:00:42]}  Qe3 {[%clk 0:01:06]} 29. h3 {[%clk 0:00:31]}  Qxa3 {[%clk 0:01:00]} 30. Nxb7 {[%clk 0:00:31]}  Qxb4 {[%clk 0:00:55]} 31. Nd8 {[%clk 0:00:31]}  Qb6 {[%clk 0:00:33]} 32. Nc6 {[%clk 0:00:16]}  a3 {[%clk 0:00:32]} 33. Qa4 {[%clk 0:00:17]}  Qb1+ {[%clk 0:00:28]} 34. Kh2 {[%clk 0:00:17]}  a2 {[%clk 0:00:28]} 35. Qa8+ {[%clk 0:00:13]}  Kg7 {[%clk 0:00:28]} 36. Ne7 {[%clk 0:00:01]}  a1=Q {[%clk 0:00:25]} 0-1


[Site "https://www.chess.com"]

[Event "Titled Tuesday Blitz March 21 Early 2023"]
[White "Duda, Jan-Krzysztof"]
[Black "djokovic74"]
[WhiteFideId "1170546"]
[WhiteElo "2790"]
[BlackElo "2559"]
[Result "1-0"]
[Round "01"]
[TimeControl "180+2"]
[Date "2023.03.21"]
[WhiteClock "0:00:18"]
[BlackClock "0:00:02"]

1. d3 {[%clk 0:02:58]}  d5 {[%clk 0:02:54]} 2. Nd2 {[%clk 0:02:56]}  e6 {[%clk 0:02:53]} 3. g3 {[%clk 0:02:57]}  Nf6 {[%clk 0:02:53]} 4. Bg2 {[%clk 0:02:57]}  Be7 {[%clk 0:02:52]} 5. e4 {[%clk 0:02:48]}  O-O {[%clk 0:02:52]} 6. Ngf3 {[%clk 0:02:48]}  c5 {[%clk 0:02:52]} 7. O-O {[%clk 0:02:49]}  Nc6 {[%clk 0:02:52]} 8. a4 {[%clk 0:02:48]}  dxe4 {[%clk 0:02:47]} 9. dxe4 {[%clk 0:02:47]}  Qc7 {[%clk 0:02:30]} 10. c3 {[%clk 0:02:43]}  b6 {[%clk 0:02:27]} 11. Qe2 {[%clk 0:02:42]}  Bb7 {[%clk 0:02:19]} 12. Re1 {[%clk 0:02:41]}  Rfd8 {[%clk 0:02:16]} 13. e5 {[%clk 0:02:32]}  Nd7 {[%clk 0:02:07]} 14. Nc4 {[%clk 0:02:28]}  Ba6 {[%clk 0:02:02]} 15. Qe4 {[%clk 0:02:28]}  Rac8 {[%clk 0:01:22]} 16. Bf4 {[%clk 0:02:17]}  Bxc4 {[%clk 0:01:19]} 17. Qxc4 {[%clk 0:02:18]}  Nf8 {[%clk 0:01:20]} 18. g4 {[%clk 0:02:09]}  Ng6 {[%clk 0:01:19]} 19. Bg3 {[%clk 0:02:09]}  Na5 {[%clk 0:01:17]} 20. Qe4 {[%clk 0:02:04]}  Qc6 {[%clk 0:00:56]} 21. Qe2 {[%clk 0:02:00]}  Qd7 {[%clk 0:00:51]} 22. Red1 {[%clk 0:01:39]}  Qc7 {[%clk 0:00:52]} 23. h4 {[%clk 0:01:32]}  Rxd1+ {[%clk 0:00:51]} 24. Rxd1 {[%clk 0:01:33]}  Rd8 {[%clk 0:00:52]} 25. Re1 {[%clk 0:01:27]}  Qd7 {[%clk 0:00:45]} 26. h5 {[%clk 0:01:27]}  Nf8 {[%clk 0:00:45]} 27. Qb5 {[%clk 0:01:18]}  Qd3 {[%clk 0:00:27]} 28. Qxd3 {[%clk 0:00:42]}  Rxd3 {[%clk 0:00:27]} 29. Kf1 {[%clk 0:00:42]}  Nc4 {[%clk 0:00:23]} 30. Ke2 {[%clk 0:00:40]}  Rd8 {[%clk 0:00:20]} 31. b3 {[%clk 0:00:38]}  Na5 {[%clk 0:00:21]} 32. Nd2 {[%clk 0:00:38]}  h6 {[%clk 0:00:21]} 33. f4 {[%clk 0:00:38]}  Nd7 {[%clk 0:00:19]} 34. Rb1 {[%clk 0:00:38]}  Nb8 {[%clk 0:00:19]} 35. Bf2 {[%clk 0:00:36]}  f6 {[%clk 0:00:17]} 36. exf6 {[%clk 0:00:32]}  Bxf6 {[%clk 0:00:18]} 37. Ne4 {[%clk 0:00:31]}  Be7 {[%clk 0:00:16]} 38. g5 {[%clk 0:00:29]}  Nac6 {[%clk 0:00:14]} 39. Bh3 {[%clk 0:00:28]}  e5 {[%clk 0:00:13]} 40. Be6+ {[%clk 0:00:28]}  Kf8 {[%clk 0:00:13]} 41. gxh6 {[%clk 0:00:25]}  gxh6 {[%clk 0:00:07]} 42. Rg1 {[%clk 0:00:26]}  Ke8 {[%clk 0:00:08]} 43. f5 {[%clk 0:00:22]}  Nd7 {[%clk 0:00:05]} 44. Rg8+ {[%clk 0:00:22]}  Bf8 {[%clk 0:00:03]} 45. Bh4 {[%clk 0:00:18]}  Rb8 {[%clk 0:00:02]} 46. Nd6# {[%clk 0:00:18]} 1-0


[Site "https://www.chess.com"]

[Event "Titled Tuesday Blitz March 21 Early 2023"]
[White "Sarana, Alexey"]
[Black "Srinath, Rao S.V."]
[WhiteFideId "24133795"]
[BlackFideId "5028876"]
[WhiteElo "2714"]
[BlackElo "2196"]
[Result "1-0"]
[Round "01"]
[TimeControl "180+2"]
[Date "2023.03.21"]
[WhiteClock "0:01:52"]
[BlackClock "0:01:00"]

1. d4 {[%clk 0:02:52]}  Nf6 {[%clk 0:02:57]} 2. c4 {[%clk 0:02:53]}  g6 {[%clk 0:02:57]} 3. Nc3 {[%clk 0:02:53]}  Bg7 {[%clk 0:02:58]} 4. e4 {[%clk 0:02:54]}  d6 {[%clk 0:02:59]} 5. Be2 {[%clk 0:02:54]}  O-O {[%clk 0:02:59]} 6. Be3 {[%clk 0:02:55]}  Na6 {[%clk 0:02:56]} 7. Nf3 {[%clk 0:02:55]}  e5 {[%clk 0:02:54]} 8. d5 {[%clk 0:02:55]}  Nc5 {[%clk 0:02:51]} 9. Nd2 {[%clk 0:02:54]}  a5 {[%clk 0:02:51]} 10. g4 {[%clk 0:02:54]}  c6 {[%clk 0:02:45]} 11. g5 {[%clk 0:02:51]}  Nfd7 {[%clk 0:02:45]} 12. h4 {[%clk 0:02:51]}  cxd5 {[%clk 0:02:44]} 13. cxd5 {[%clk 0:02:49]}  f5 {[%clk 0:02:44]} 14. f3 {[%clk 0:02:41]}  fxe4 {[%clk 0:02:43]} 15. Ndxe4 {[%clk 0:02:35]}  Nxe4 {[%clk 0:02:39]} 16. Nxe4 {[%clk 0:02:36]}  Qe7 {[%clk 0:02:38]} 17. Rc1 {[%clk 0:02:35]}  Rf7 {[%clk 0:02:23]} 18. Rc7 {[%clk 0:02:23]}  Qd8 {[%clk 0:02:23]} 19. Qc2 {[%clk 0:02:22]}  Nf8 {[%clk 0:02:19]} 20. Rxf7 {[%clk 0:02:19]}  Kxf7 {[%clk 0:02:20]} 21. Qb3 {[%clk 0:02:12]}  a4 {[%clk 0:02:18]} 22. Qb4 {[%clk 0:02:10]}  Bf5 {[%clk 0:01:58]} 23. Nxd6+ {[%clk 0:02:11]}  Kg8 {[%clk 0:01:59]} 24. Nxf5 {[%clk 0:02:11]}  gxf5 {[%clk 0:01:59]} 25. d6 {[%clk 0:02:11]}  Kh8 {[%clk 0:01:55]} 26. Kf2 {[%clk 0:02:08]}  Ne6 {[%clk 0:01:54]} 27. Qxb7 {[%clk 0:02:02]}  Rb8 {[%clk 0:01:46]} 28. Qe7 {[%clk 0:02:02]}  f4 {[%clk 0:01:41]} 29. Ba7 {[%clk 0:01:55]}  Qxe7 {[%clk 0:01:22]} 30. dxe7 {[%clk 0:01:56]}  Re8 {[%clk 0:01:22]} 31. Rc1 {[%clk 0:01:56]}  Rxe7 {[%clk 0:01:22]} 32. Rc8+ {[%clk 0:01:57]}  Bf8 {[%clk 0:01:22]} 33. Bb8 {[%clk 0:01:56]}  Kg7 {[%clk 0:01:12]} 34. Bxe5+ {[%clk 0:01:55]}  Kg6 {[%clk 0:01:12]} 35. Bd3+ {[%clk 0:01:56]}  Kh5 {[%clk 0:01:12]} 36. Bf5 {[%clk 0:01:54]}  Kxh4 {[%clk 0:01:08]} 37. Bf6 {[%clk 0:01:53]}  Rc7 {[%clk 0:01:02]} 38. Bxe6 {[%clk 0:01:52]}  Bc5+ {[%clk 0:01:00]} 39. Ke2 {[%clk 0:01:52]}  Rxc8 {[%clk 0:00:59]} 40. Bxc8 {[%clk 0:01:53]}  Kg3 {[%clk 0:01:00]} 41. Bf5 {[%clk 0:01:52]} 1-0


[Site "https://www.chess.com"]

[Event "Titled Tuesday Blitz March 21 Early 2023"]
[White "Borgaonkar Akshay"]
[Black "Bluebaum, Matthias"]
[WhiteFideId "25639110"]
[BlackFideId "24651516"]
[WhiteElo "2063"]
[BlackElo "2638"]
[Result "0-1"]
[Round "01"]
[TimeControl "180+2"]
[Date "2023.03.21"]
[WhiteClock "0:00:12"]
[BlackClock "0:00:26"]

1. Nf3 {[%clk 0:02:58]}  d5 {[%clk 0:02:59]} 2. b3 {[%clk 0:02:58]}  c5 {[%clk 0:02:59]} 3. Bb2 {[%clk 0:02:58]}  Nc6 {[%clk 0:03:00]} 4. e3 {[%clk 0:02:57]}  a6 {[%clk 0:03:00]} 5. Be2 {[%clk 0:02:56]}  Bf5 {[%clk 0:02:56]} 6. O-O {[%clk 0:02:56]}  e6 {[%clk 0:02:56]} 7. d3 {[%clk 0:02:56]}  Nf6 {[%clk 0:02:55]} 8. Nbd2 {[%clk 0:02:56]}  h6 {[%clk 0:02:56]} 9. Re1 {[%clk 0:02:52]}  Be7 {[%clk 0:02:56]} 10. Bf1 {[%clk 0:02:52]}  O-O {[%clk 0:02:56]} 11. e4 {[%clk 0:02:51]}  Bh7 {[%clk 0:02:56]} 12. e5 {[%clk 0:02:49]}  Nd7 {[%clk 0:02:56]} 13. g3 {[%clk 0:02:47]}  b5 {[%clk 0:02:55]} 14. Bg2 {[%clk 0:02:46]}  a5 {[%clk 0:02:55]} 15. c4 {[%clk 0:02:42]}  Nb4 {[%clk 0:02:47]} 16. cxd5 {[%clk 0:02:30]}  Nxd3 {[%clk 0:02:28]} 17. d6 {[%clk 0:02:23]}  Nxb2 {[%clk 0:02:28]} 18. dxe7 {[%clk 0:02:22]}  Qxe7 {[%clk 0:02:29]} 19. Qe2 {[%clk 0:02:21]}  Nd3 {[%clk 0:02:26]} 20. Red1 {[%clk 0:02:17]}  Rac8 {[%clk 0:02:19]} 21. a4 {[%clk 0:02:02]}  bxa4 {[%clk 0:02:12]} 22. Nc4 {[%clk 0:02:00]}  Nb4 {[%clk 0:01:41]} 23. bxa4 {[%clk 0:01:56]}  Nd5 {[%clk 0:01:35]} 24. Qe1 {[%clk 0:01:53]}  Ra8 {[%clk 0:01:23]} 25. Nxa5 {[%clk 0:01:45]}  Nb4 {[%clk 0:01:22]} 26. Qd2 {[%clk 0:01:32]}  Nb6 {[%clk 0:01:11]} 27. Nb3 {[%clk 0:01:21]}  Bc2 {[%clk 0:01:09]} 28. Nxc5 {[%clk 0:01:06]}  Qxc5 {[%clk 0:01:06]} 29. Rdc1 {[%clk 0:01:06]}  Rfd8 {[%clk 0:01:04]} 30. Qe2 {[%clk 0:01:06]}  Rxa4 {[%clk 0:00:48]} 31. Rxa4 {[%clk 0:01:03]}  Nxa4 {[%clk 0:00:49]} 32. Ne1 {[%clk 0:01:04]}  Nc3 {[%clk 0:00:44]} 33. Qf3 {[%clk 0:00:54]}  Rd1 {[%clk 0:00:42]} 34. Rxd1 {[%clk 0:00:43]}  Bxd1 {[%clk 0:00:41]} 35. Qa8+ {[%clk 0:00:36]}  Kh7 {[%clk 0:00:42]} 36. Qa1 {[%clk 0:00:25]}  Nc2 {[%clk 0:00:36]} 37. Nxc2 {[%clk 0:00:18]}  Bxc2 {[%clk 0:00:37]} 38. h4 {[%clk 0:00:16]}  Be4 {[%clk 0:00:33]} 39. Bf1 {[%clk 0:00:15]}  Qxe5 {[%clk 0:00:30]} 40. Qb2 {[%clk 0:00:15]}  Bf3 {[%clk 0:00:26]} 41. Bd3+ {[%clk 0:00:14]}  g6 {[%clk 0:00:26]} 42. h5 {[%clk 0:00:14]}  Ne2+ {[%clk 0:00:27]} 43. Kh2 {[%clk 0:00:12]}  Qxh5# {[%clk 0:00:26]} 0-1


[Site "https://www.chess.com"]

[Event "Titled Tuesday Blitz March 21 Early 2023"]
[White "Lazavik, Denis"]
[Black "Poltorak, Sebastian"]
[WhiteFideId "13515110"]
[BlackFideId "1199498"]
[WhiteElo "2560"]
[BlackElo "2195"]
[Result "1-0"]
[Round "01"]
[TimeControl "180+2"]
[Date "2023.03.21"]
[WhiteClock "0:02:29"]
[BlackClock "0:01:11"]

1. d4 {[%clk 0:03:00]}  Nf6 {[%clk 0:02:58]} 2. c4 {[%clk 0:03:01]}  g6 {[%clk 0:02:58]} 3. g3 {[%clk 0:03:01]}  d5 {[%clk 0:02:56]} 4. cxd5 {[%clk 0:03:01]}  Nxd5 {[%clk 0:02:57]} 5. Bg2 {[%clk 0:03:01]}  Bg7 {[%clk 0:02:58]} 6. Nf3 {[%clk 0:02:59]}  O-O {[%clk 0:02:56]} 7. O-O {[%clk 0:02:59]}  c5 {[%clk 0:02:57]} 8. e4 {[%clk 0:02:59]}  Nf6 {[%clk 0:02:57]} 9. e5 {[%clk 0:02:57]}  Nd5 {[%clk 0:02:57]} 10. dxc5 {[%clk 0:02:57]}  Na6 {[%clk 0:02:58]} 11. a3 {[%clk 0:02:57]}  Nxc5 {[%clk 0:02:53]} 12. b4 {[%clk 0:02:57]}  Ne6 {[%clk 0:02:47]} 13. Qb3 {[%clk 0:02:57]}  Nb6 {[%clk 0:02:39]} 14. Rd1 {[%clk 0:02:53]}  Qc7 {[%clk 0:02:33]} 15. Nc3 {[%clk 0:02:49]}  Bd7 {[%clk 0:02:26]} 16. Be3 {[%clk 0:02:34]}  Nc4 {[%clk 0:01:30]} 17. Nd5 {[%clk 0:02:30]}  Nxe3 {[%clk 0:01:10]} 18. Nxc7 {[%clk 0:02:29]}  Nxd1 {[%clk 0:01:11]} 19. Nxa8 {[%clk 0:02:29]} 1-0


[Site "https://www.chess.com"]

[Event "Titled Tuesday Blitz March 21 Early 2023"]
[White "Trakru, Rohun"]
[Black "Bortnyk, Olexandr"]
[WhiteFideId "2097613"]
[BlackFideId "14120828"]
[WhiteElo "1852"]
[BlackElo "2734"]
[Result "0-1"]
[Round "01"]
[TimeControl "180+2"]
[Date "2023.03.21"]
[WhiteClock "0:00:22"]
[BlackClock "0:00:39"]

1. e4 {[%clk 0:03:00]}  Nf6 {[%clk 0:02:59]} 2. e5 {[%clk 0:03:00]}  Nd5 {[%clk 0:03:00]} 3. Nc3 {[%clk 0:03:00]}  Nxc3 {[%clk 0:02:59]} 4. dxc3 {[%clk 0:03:01]}  d6 {[%clk 0:02:59]} 5. Bc4 {[%clk 0:02:58]}  Nc6 {[%clk 0:02:59]} 6. Bf4 {[%clk 0:02:55]}  dxe5 {[%clk 0:02:48]} 7. Qxd8+ {[%clk 0:02:48]}  Kxd8 {[%clk 0:02:45]} 8. Bg3 {[%clk 0:02:23]}  Ke8 {[%clk 0:02:39]} 9. O-O-O {[%clk 0:02:13]}  g6 {[%clk 0:02:25]} 10. Nf3 {[%clk 0:02:09]}  Bh6+ {[%clk 0:02:23]} 11. Kb1 {[%clk 0:02:09]}  f6 {[%clk 0:02:23]} 12. Nd2 {[%clk 0:02:04]}  Bf5 {[%clk 0:02:18]} 13. Rhe1 {[%clk 0:02:02]}  Rd8 {[%clk 0:02:17]} 14. Nb3 {[%clk 0:02:02]}  Rd6 {[%clk 0:02:10]} 15. f3 {[%clk 0:01:55]}  Kd7 {[%clk 0:02:05]} 16. Bf2 {[%clk 0:01:50]}  Kc8 {[%clk 0:01:44]} 17. Nc5 {[%clk 0:01:36]}  Rhd8 {[%clk 0:01:42]} 18. Rxd6 {[%clk 0:01:10]}  exd6 {[%clk 0:01:43]} 19. g4 {[%clk 0:01:01]}  Bxc2+ {[%clk 0:01:41]} 20. Kxc2 {[%clk 0:01:00]}  dxc5 {[%clk 0:01:42]} 21. Bxc5 {[%clk 0:00:50]}  Rd2+ {[%clk 0:01:41]} 22. Kb1 {[%clk 0:00:50]}  Rxh2 {[%clk 0:01:40]} 23. Bg8 {[%clk 0:00:45]}  b6 {[%clk 0:01:37]} 24. Ba3 {[%clk 0:00:43]}  Bd2 {[%clk 0:01:31]} 25. Rd1 {[%clk 0:00:42]}  h5 {[%clk 0:01:31]} 26. Kc2 {[%clk 0:00:40]}  Bf4+ {[%clk 0:01:25]} 27. Kb3 {[%clk 0:00:40]}  Rd2 {[%clk 0:01:18]} 28. Rh1 {[%clk 0:00:37]}  hxg4 {[%clk 0:01:00]} 29. fxg4 {[%clk 0:00:38]}  e4 {[%clk 0:00:58]} 30. Rh8 {[%clk 0:00:33]}  Kb7 {[%clk 0:00:56]} 31. Be6 {[%clk 0:00:31]}  Rd8 {[%clk 0:00:53]} 32. Rh1 {[%clk 0:00:28]}  e3 {[%clk 0:00:45]} 33. Re1 {[%clk 0:00:25]}  Ne5 {[%clk 0:00:45]} 34. Kc2 {[%clk 0:00:23]}  Rd2+ {[%clk 0:00:44]} 35. Kb1 {[%clk 0:00:22]}  Nf3 {[%clk 0:00:39]} 0-1


[Site "https://www.chess.com"]

[Event "Titled Tuesday Blitz March 21 Early 2023"]
[White "Kavutskiy, Konstantin"]
[Black "Howell, David W L"]
[WhiteFideId "2026384"]
[BlackFideId "410608"]
[WhiteElo "2369"]
[BlackElo "2567"]
[Result "0-1"]
[Round "01"]
[TimeControl "180+2"]
[Date "2023.03.21"]
[WhiteClock "0:01:15"]
[BlackClock "0:00:35"]

1. d4 {[%clk 0:03:00]}  e6 {[%clk 0:02:55]} 2. c4 {[%clk 0:02:59]}  d5 {[%clk 0:02:54]} 3. Nf3 {[%clk 0:02:58]}  a6 {[%clk 0:02:48]} 4. Bg5 {[%clk 0:02:54]}  Be7 {[%clk 0:02:45]} 5. Bxe7 {[%clk 0:02:55]}  Qxe7 {[%clk 0:02:46]} 6. Nbd2 {[%clk 0:02:52]}  Nf6 {[%clk 0:02:44]} 7. g3 {[%clk 0:02:52]}  O-O {[%clk 0:02:21]} 8. Bg2 {[%clk 0:02:52]}  b6 {[%clk 0:02:02]} 9. O-O {[%clk 0:02:52]}  Bb7 {[%clk 0:02:02]} 10. Rc1 {[%clk 0:02:51]}  Rc8 {[%clk 0:01:57]} 11. c5 {[%clk 0:02:46]}  Nc6 {[%clk 0:01:53]} 12. a3 {[%clk 0:02:44]}  bxc5 {[%clk 0:01:21]} 13. Rxc5 {[%clk 0:02:37]}  Nxd4 {[%clk 0:01:19]} 14. b4 {[%clk 0:02:29]}  Nxf3+ {[%clk 0:01:16]} 15. exf3 {[%clk 0:02:27]}  Nd7 {[%clk 0:01:13]} 16. Rc2 {[%clk 0:02:24]}  a5 {[%clk 0:01:11]} 17. Qc1 {[%clk 0:02:14]}  axb4 {[%clk 0:01:11]} 18. axb4 {[%clk 0:02:15]}  Ba6 {[%clk 0:00:48]} 19. Rd1 {[%clk 0:01:59]}  Ne5 {[%clk 0:00:45]} 20. Ra2 {[%clk 0:01:43]}  Be2 {[%clk 0:00:35]} 21. Rxa8 {[%clk 0:01:40]}  Rxa8 {[%clk 0:00:36]} 22. Re1 {[%clk 0:01:35]}  Nd3 {[%clk 0:00:34]} 23. Qc6 {[%clk 0:01:35]}  Nxe1 {[%clk 0:00:35]} 24. Qxa8+ {[%clk 0:01:35]}  Qf8 {[%clk 0:00:35]} 25. Qb8 {[%clk 0:01:15]} 0-1


[Site "https://www.chess.com"]

[Event "Titled Tuesday Blitz March 21 Early 2023"]
[White "Nefedov, Sergey"]
[Black "Paravyan, David"]
[WhiteFideId "24113417"]
[BlackFideId "4194985"]
[WhiteElo "2227"]
[BlackElo "2577"]
[Result "0-1"]
[Round "01"]
[TimeControl "180+2"]
[Date "2023.03.21"]
[WhiteClock "0:01:44"]
[BlackClock "0:02:51"]

1. d4 {[%clk 0:02:56]}  Nf6 {[%clk 0:02:58]} 2. Nf3 {[%clk 0:02:56]}  g6 {[%clk 0:02:59]} 3. c4 {[%clk 0:02:56]}  Bg7 {[%clk 0:02:59]} 4. Nc3 {[%clk 0:02:56]}  d5 {[%clk 0:03:00]} 5. e3 {[%clk 0:02:56]}  O-O {[%clk 0:02:59]} 6. Qb3 {[%clk 0:02:56]}  e6 {[%clk 0:02:58]} 7. Be2 {[%clk 0:02:53]}  dxc4 {[%clk 0:02:57]} 8. Qxc4 {[%clk 0:02:50]}  a6 {[%clk 0:02:58]} 9. O-O {[%clk 0:02:50]}  b5 {[%clk 0:02:58]} 10. Qd3 {[%clk 0:02:50]}  c5 {[%clk 0:02:57]} 11. dxc5 {[%clk 0:02:49]}  Qxd3 {[%clk 0:02:58]} 12. Bxd3 {[%clk 0:02:49]}  Nfd7 {[%clk 0:02:57]} 13. Be4 {[%clk 0:02:27]}  Ra7 {[%clk 0:02:57]} 14. c6 {[%clk 0:02:25]}  Nc5 {[%clk 0:02:53]} 15. Rd1 {[%clk 0:02:25]}  Bxc3 {[%clk 0:02:52]} 16. Bxg6 {[%clk 0:01:44]}  Bf6 {[%clk 0:02:51]} 0-1


[Site "https://www.chess.com"]